bitfinex/quotes_SOLUSD_20250228
["timestamp","ask_amount","ask_price","bid_price","bid_amount"]
[1740731512974,0.063,131.1,130.99,11.4722249]
[1740731513947,26.7601,131.1,130.99,7.6341]
[1740731514646,101.44964886,131.09,130.94,7.637]
[1740731514837,26.7601,131.1,130.95,1.60310871]
[1740731515031,26.7601,131.1,130.96,18.64964886]
[1740731515260,26.7601,131.1,130.97,1.74478671]
[1740731515444,26.7601,131.1,130.99,20.0]
[1740731515832,26.7601,131.1,130.98,7.6347]
[1740731517236,26.7601,131.1,131.0,11.48218231]
[1740731518138,19.1324,131.1,131.0,11.48218231]
[1740731519153,18.64964886,131.09,130.98,7.6343]
[1740731519355,19.1324,131.1,130.98,7.6343]
[1740731519736,0.14216157,131.08,130.96,3.91902227]
[1740731519932,0.14216157,131.08,130.96,11.55472227]
[1740731520252,10.2052,131.04,130.96,3.91902227]
[1740731521452,18.64964886,131.03,130.96,3.91902227]
[1740731521631,0.14216157,131.02,130.91,0.03]
[1740731521840,0.14216157,131.02,130.92,3.7486541]
[1740731522043,38.64964886,130.99,130.91,0.03]
[1740731522258,7.6347,130.98,130.91,0.03]
[1740731522434,7.6318,131.03,130.91,0.03]
[1740731522931,19.22426157,131.02,130.91,0.03]
[1740731523136,0.14216157,131.0,130.91,0.03]
[1740731523851,26.28374886,130.99,130.91,0.03]
[1740731524030,19.0763,131.06,130.91,7.6688]
[1740731524353,101.8719,131.09,130.96,20.0]
[1740731524749,18.64964886,131.07,130.93,81.6]
[1740731524953,7.6301,131.06,130.97,3.78624059]
[1740731525140,101.8719,131.09,130.97,3.78624059]
[1740731525350,17.8366,131.04,130.96,3.90323009]
[1740731525536,17.8366,131.04,130.92,130.0772384]
[1740731525876,17.8366,131.04,130.92,1.6034414]
[1740731526030,17.8366,131.04,130.93,0.14216157]
[1740731526234,10.2052,131.04,130.96,20.0]
[1740731526436,10.2052,131.04,130.96,20.14216157]
[1740731526838,17.8365,131.04,130.95,3.84720015]
[1740731527766,36.9146,131.04,130.95,3.84720015]
[1740731528266,20.0,131.0,130.91,0.03]
[1740731528442,20.0,131.0,130.94,0.063]
[1740731528649,18.64964886,130.97,130.91,0.03]
[1740731528955,20.0,130.94,130.91,0.03]
[1740731529149,18.79181043,130.93,130.83,0.03]
[1740731529531,18.79181043,130.93,130.83,7.6733]
[1740731529532,18.64964886,130.93,130.83,7.6733]
[1740731529742,20.0,130.94,130.83,7.6733]
[1740731529939,26.725,130.97,130.84,1.60438249]
[1740731530141,7.6347,130.99,130.85,18.64964886]
[1740731530368,101.876,131.06,130.89,86.93181043]
[1740731530537,17.9828,131.04,130.92,0.14216157]
[1740731530739,17.9828,131.04,130.92,1.60292606]
[1740731530934,17.9828,131.04,130.95,3.83098534]
[1740731531865,10.3516,131.04,130.96,7.6359]
[1740731532375,17.983,131.04,130.95,3.83098534]
[1740731532575,17.983,131.04,130.95,11.46738534]
[1740731532872,10.3516,131.04,130.94,4.04159631]
[1740731533069,10.3516,131.04,130.96,0.14216157]
[1740731533368,7.0412,131.1,130.99,20.0]
[1740731533565,7.6304,131.06,131.0,3.90058501]
[1740731533766,7.6283,131.09,131.0,3.90058501]
[1740731534146,14.669,131.1,131.0,11.53388501]
[1740731534343,17.05067608,131.06,131.0,11.53388501]
[1740731535492,17.05067608,131.06,131.04,20.14216157]
[1740731535642,17.05067608,131.06,131.04,23.76025137]
[1740731535968,17.05067608,131.06,131.05,21.74414349]
[1740731536268,17.05067608,131.06,131.05,20.0]
[1740731537272,17.05067608,131.06,131.04,3.76025137]
[1740731537752,17.05067608,131.06,131.04,11.39125137]
[1740731538151,17.05067608,131.06,131.04,3.83906986]
[1740731538953,17.05067608,131.06,131.05,1.60188015]
[1740731539160,12.14340424,131.06,131.05,20.0]
[1740731539376,12.14340424,131.06,131.05,20.14216157]
[1740731539675,12.14340424,131.06,131.05,27.77276157]
[1740731539878,12.14340424,131.06,131.05,27.6306]
[1740731540258,0.063,131.1,131.06,0.14216157]
[1740731540852,0.063,131.1,131.05,27.6306]
[1740731541050,0.063,131.1,131.05,46.7072]
[1740731541252,0.063,131.1,131.05,27.6306]
[1740731541461,0.063,131.1,131.04,11.47016986]
[1740731541862,0.063,131.1,131.04,3.83906986]
[1740731542061,0.063,131.1,130.99,19.0843]
[1740731542276,0.063,131.1,131.01,7.6325]
[1740731542475,18.71264886,131.1,130.99,7.634]
[1740731542664,18.71264886,131.1,130.96,128.02884813]
[1740731542864,18.71264886,131.1,130.99,3.7726099]
[1740731542865,0.063,131.1,130.99,3.7726099]
[1740731543676,0.063,131.1,131.0,28.31977673]
[1740731543873,0.063,131.1,131.01,0.14216157]
[1740731544175,0.063,131.1,131.0,28.31977673]
[1740731544370,0.063,131.1,131.0,7.6335]
[1740731544681,0.063,131.1,131.0,26.7174]
[1740731544880,0.063,131.1,131.01,1.60222208]
[1740731545177,0.063,131.1,131.03,20.0]
[1740731545562,0.063,131.1,131.04,7.6312]
[1740731546370,0.063,131.1,131.01,7.633]
[1740731546958,0.063,131.1,131.01,26.7155]
[1740731547161,0.063,131.1,131.04,3.8174342]
[1740731547877,0.063,131.1,130.99,81.6]
[1740731548182,0.063,131.1,131.02,3.85575032]
[1740731549762,0.063,131.1,131.03,7.6318]
[1740731551469,0.063,131.1,131.02,3.85575032]
[1740731551669,45.34464886,131.11,131.02,11.48795032]
[1740731551882,0.14216157,131.1,130.98,19.0855]
[1740731552083,0.14216157,131.1,130.99,7.6341]
[1740731552084,6.7443,131.08,130.99,7.6341]
[1740731552583,6.7443,131.08,131.0,3.81697917]
[1740731553580,6.7443,131.08,131.02,20.0]
[1740731553783,6.7443,131.08,131.03,7.6318]
[1740731553983,6.7443,131.08,131.04,3.89134088]
[1740731554407,6.7443,131.08,131.03,7.6318]
[1740731554697,6.7443,131.08,131.01,26.7155]
[1740731555069,6.7443,131.08,131.01,7.633]
[1740731555480,6.7443,131.08,131.01,26.7155]
[1740731556282,14.3733,131.08,131.01,7.633]
[1740731556486,14.3733,131.08,130.99,7.6341]
[1740731556695,18.64964886,131.07,130.98,3.87379541]
[1740731556869,18.64964886,131.07,130.97,7.6353]
[1740731557205,20.0,131.04,130.96,0.03]
[1740731557390,18.64964886,131.05,130.96,0.03]
[1740731557688,26.28314886,131.0,130.89,0.03]
[1740731557875,0.14216157,130.99,130.89,0.03]
[1740731558075,0.14216157,130.95,130.89,0.03]
[1740731558386,0.14216157,130.92,130.83,0.03]
[1740731558688,18.64964886,130.93,130.83,0.03]
[1740731558862,6.7175,130.94,130.83,7.6734]
[1740731559291,6.7175,130.94,130.83,26.7821]
[1740731559678,6.7175,130.94,130.83,19.1387]
[1740731559981,14.3547,130.94,130.83,19.1387]
[1740731560492,14.3547,130.94,130.87,20.0]
[1740731560493,6.7175,130.94,130.87,20.0]
[1740731560793,3.5319,130.96,130.87,20.0]
[1740731561363,3.5319,130.96,130.87,21.6038812]
[1740731561771,6.7409,130.99,130.92,7.6382]
[1740731561992,3.5868,131.02,130.95,20.0]
[1740731562293,7.3263,131.05,130.94,18.79181043]
[1740731562493,7.3263,131.05,130.99,3.88153879]
[1740731563076,7.3263,131.05,130.94,209.59884813]
[1740731563276,7.3263,131.05,130.95,20.0]
[1740731563878,7.3263,131.05,130.96,26.7256]
[1740731564083,7.3263,131.05,130.96,11.47678638]
[1740731565510,7.3263,131.05,130.96,32.1693119]
[1740731565679,7.3263,131.05,130.99,20.0]
[1740731565993,3.5868,131.08,131.01,20.0]
[1740731566574,3.5868,131.08,130.98,28.32302767]
[1740731566989,3.5868,131.08,130.98,26.7207]
[1740731567188,6.7919,131.1,130.99,20.39430839]
[1740731567397,6.7919,131.1,131.02,20.0]
[1740731567688,0.063,131.1,131.03,21.60191869]
[1740731567890,0.063,131.1,131.04,26.7093]
[1740731568077,0.063,131.1,131.08,20.0]
[1740731568498,18.88526839,131.12,131.08,20.0]
[1740731568988,6.839e-05,131.12,131.1,0.14216157]
[1740731569191,6.839e-05,131.12,131.11,38.79181043]
[1740731569377,6.839e-05,131.12,131.11,20.0]
[1740731569777,6.839e-05,131.12,131.09,3.75315944]
[1740731569977,6.839e-05,131.12,131.1,7.6277]
[1740731570373,6.839e-05,131.12,131.09,31.38135944]
[1740731571473,6.839e-05,131.12,131.09,11.38135944]
[1740731572395,6.839e-05,131.12,131.08,7.6288]
[1740731573286,6.839e-05,131.12,131.06,7.63]
[1740731573603,6.839e-05,131.12,131.06,46.95659525]
[1740731573902,6.839e-05,131.12,131.06,26.7052]
[1740731574195,6.839e-05,131.12,131.06,7.63]
[1740731575194,6.839e-05,131.12,131.07,1.74381684]
[1740731575380,6.839e-05,131.12,131.06,154.70404813]
[1740731575875,6.839e-05,131.12,131.06,7.63]
[1740731576080,6.839e-05,131.12,131.06,26.7052]
[1740731577093,6.839e-05,131.12,131.06,7.63]
[1740731577404,0.03006839,131.12,131.06,7.63]
[1740731578284,6.839e-05,131.12,131.1,20.14216157]
[1740731578483,0.063,131.19,131.11,1.74291176]
[1740731578701,0.063,131.19,131.12,18.64964886]
[1740731579296,0.063,131.19,131.13,1.74284599]
[1740731579498,0.063,131.19,131.13,1.60068442]
[1740731579803,0.063,131.19,131.12,20.0]
[1740731580199,0.063,131.19,131.15,7.6248]
[1740731580783,0.063,131.19,131.12,20.0]
[1740731581002,0.063,131.19,131.13,7.626]
[1740731581204,0.063,131.19,131.13,30.55381946]
[1740731581797,0.063,131.19,131.12,3.82293765]
[1740731582192,0.063,131.19,131.12,11.44903765]
[1740731582388,0.063,131.19,131.03,121.7569]
[1740731582389,18.71264886,131.19,131.09,7.6283]
[1740731582601,18.71264886,131.19,131.06,7.63]
[1740731582602,0.14216157,131.18,131.06,7.63]
[1740731583105,0.14216157,131.18,131.02,19.0799]
[1740731583306,0.14216157,131.18,131.05,20.0]
[1740731583609,18.64964886,131.15,131.05,3.82255479]
[1740731583789,18.79181043,131.15,131.03,3.85854438]
[1740731584197,18.64964886,131.13,131.03,11.48974438]
[1740731584400,20.0,131.1,130.99,7.6341]
[1740731584602,38.79181043,131.09,130.94,7.637]
[1740731584805,18.3925,131.14,130.98,3.80567942]
[1740731585005,18.3925,131.14,131.01,20.0]
[1740731585320,18.3925,131.14,131.02,23.91723908]
[1740731585705,18.3925,131.14,131.03,1.60198391]
[1740731586014,18.3925,131.14,131.02,23.91723908]
[1740731586187,18.3925,131.14,131.03,7.6318]
[1740731586593,18.3925,131.14,131.03,9.23400412]
[1740731586810,18.64964886,131.13,131.02,11.54953908]
[1740731586993,18.3925,131.14,131.02,11.54953908]
[1740731587193,18.64964886,131.13,131.02,11.54953908]
[1740731587402,10.7671,131.14,131.05,20.0]
[1740731587590,10.7671,131.14,131.06,1.60167476]
[1740731587795,10.7671,131.14,131.09,20.0]
[1740731587987,0.063,131.19,131.1,3.8047745]
[1740731588287,0.063,131.19,131.14,7.6254]
[1740731588495,0.063,131.19,131.14,26.6889]
[1740731588899,0.063,131.19,131.15,3.8606989]
[1740731589196,20.44932259,131.22,131.19,20.0]
[1740731590008,20.44932259,131.22,131.2,0.14216157]
[1740731590309,2.259e-05,131.22,131.21,0.14216157]
[1740731590605,23.86897699,131.29,131.21,7.76346157]
[1740731590799,23.86897699,131.29,131.21,27.6213]
[1740731590993,7.6155,131.31,131.21,27.6213]
[1740731591190,7.6155,131.31,131.16,7.6242]
[1740731591509,18.79181043,131.3,131.16,7.6242]
[1740731592108,18.79181043,131.3,131.15,7.6247]
[1740731592306,0.14216157,131.28,131.15,7.6247]
[1740731592508,10.5855,131.29,131.17,3.85503706]
[1740731592807,18.79181043,131.28,131.15,7.6247]
[1740731593005,18.79181043,131.28,131.13,7.6255]
[1740731593208,18.79181043,131.24,131.12,7.6265]
[1740731593396,0.14216157,131.24,131.1,0.063]
[1740731593708,20.0,131.24,131.1,18.71264886]
[1740731594094,18.79181043,131.23,131.1,0.063]
[1740731594298,0.14216157,131.2,131.1,0.063]
[1740731595493,18.64964886,131.17,131.1,0.063]
[1740731595714,0.14216157,131.16,131.1,0.063]
[1740731596010,18.64964886,131.15,131.1,0.063]
[1740731596313,20.0,131.16,131.1,0.063]
[1740731596493,18.64964886,131.14,131.1,0.063]
[1740731597008,26.6869,131.15,131.1,0.063]
[1740731597211,7.6248,131.15,131.1,0.063]
[1740731597528,0.14216157,131.13,131.04,3.88529946]
[1740731597702,0.14216157,131.13,130.98,7.6347]
[1740731597703,18.64964886,131.11,130.98,7.6347]
[1740731598012,0.14216157,131.1,130.99,3.91803904]
[1740731598396,18.64964886,131.08,130.99,3.91803904]
[1740731598592,7.6283,131.09,130.99,11.55213904]
[1740731598796,7.6283,131.09,130.99,3.91803904]
[1740731599211,0.14216157,131.07,130.96,5.55892119]
[1740731599515,18.79181043,131.04,130.96,0.063]
[1740731599720,18.64964886,131.02,130.96,0.063]
[1740731599893,10.2132,131.03,130.96,0.063]
[1740731600507,7.6324,131.02,130.96,0.063]
[1740731601211,26.28204886,131.02,130.96,0.063]
[1740731601421,18.64964886,131.01,130.96,0.063]
[1740731601800,18.64964886,131.01,130.91,0.03]
[1740731602016,0.14216157,131.0,130.91,0.03]
[1740731602718,19.0854,130.99,130.91,0.03]
[1740731603806,18.79181043,130.98,130.91,0.03]
[1740731604007,20.0,130.95,130.91,0.03]
[1740731604205,18.79181043,130.92,130.88,0.063]
[1740731604606,26.7358,130.91,130.88,0.063]
[1740731605305,26.7358,130.91,130.82,0.03]
[1740731605498,0.14216157,130.9,130.82,0.03]
[1740731605704,26.7358,130.91,130.82,0.03]
[1740731606112,18.79181043,130.9,130.82,0.03]
[1740731606415,26.7358,130.91,130.82,0.03]
[1740731606795,7.6388,130.91,130.82,0.03]
[1740731607708,26.7358,130.91,130.82,0.03]
[1740731609418,7.6388,130.91,130.82,0.03]
[1740731609619,18.79181043,130.9,130.82,0.03]
[1740731609805,18.79181043,130.88,130.82,0.03]
[1740731610116,82.8,130.87,130.82,0.03]
[1740731610319,0.14216157,130.86,130.82,0.03]
[1740731610701,18.79181043,130.84,130.78,0.03]
[1740731611319,18.79181043,130.82,130.78,0.03]
[1740731611618,10.6441,130.83,130.78,0.03]
[1740731612203,18.79181043,130.82,130.78,0.03]
[1740731612740,7.6446,130.81,130.78,0.03]
[1740731612937,18.79181043,130.8,130.78,0.03]
[1740731613103,7.6446,130.81,130.78,0.03]
[1740731613408,18.288,130.83,130.78,0.03]
[1740731614237,18.2877,130.83,130.78,0.03]
[1740731614657,10.6441,130.83,130.78,0.03]
[1740731614825,18.2878,130.83,130.78,0.03]
[1740731615138,18.64964886,130.81,130.78,0.03]
[1740731615350,82.8,130.82,130.78,0.03]
[1740731615521,18.2877,130.83,130.78,0.03]
[1740731616324,101.59181043,130.82,130.78,0.03]
[1740731616645,7.6446,130.81,130.78,0.03]
[1740731616821,0.14216157,130.8,130.78,0.03]
[1740731617024,18.79181043,130.8,130.78,0.03]
[1740731617446,18.79181043,130.8,130.69,19.1582]
[1740731617447,86.8,130.79,130.69,0.03]
[1740731617953,84.8,130.79,130.69,7.6816]
[1740731618128,82.8,130.79,130.69,7.6816]
[1740731618538,26.7562,130.81,130.69,0.03]
[1740731618834,7.6446,130.81,130.69,0.03]
[1740731619033,3.6404,130.83,130.73,20.0]
[1740731619538,37.75374886,130.87,130.74,20.39728579]
[1740731619539,7.6411,130.87,130.74,20.39728579]
[1740731619746,7.6411,130.87,130.73,209.59884813]
[1740731619747,9.6411,130.87,130.73,81.6]
[1740731619930,22.64964886,130.86,130.71,3.8814749]
[1740731620251,0.14216157,130.82,130.73,20.0]
[1740731620441,18.64964886,130.84,130.73,20.0]
[1740731620753,26.7502,130.84,130.73,27.6487]
[1740731620953,7.6429,130.84,130.73,27.6487]
[1740731621130,7.6411,130.87,130.74,0.14216157]
[1740731621458,7.6411,130.87,130.77,20.0]
[1740731621756,7.6411,130.87,130.76,3.84264461]
[1740731621757,18.79181043,130.86,130.76,3.84264461]
[1740731622050,7.6411,130.87,130.76,3.84264461]
[1740731622254,82.8,130.86,130.73,26.772]
[1740731622426,18.79181043,130.85,130.75,3.90217583]
[1740731622621,18.79181043,130.85,130.73,7.6487]
[1740731622944,26.7502,130.84,130.73,20.0]
[1740731624148,7.6429,130.84,130.74,3.91715466]
[1740731624356,7.6417,130.86,130.77,20.0]
[1740731624638,26.746,130.86,130.77,20.0]
[1740731625147,26.746,130.86,130.74,3.91715466]
[1740731625148,18.64964886,130.85,130.74,3.91715466]
[1740731625330,0.14216157,130.84,130.74,3.91715466]
[1740731625551,0.14216157,130.84,130.72,7.6498]
[1740731625729,82.8,130.85,130.72,26.7746]
[1740731625934,7.6417,130.86,130.73,20.39745618]
[1740731626131,7.6411,130.87,130.74,26.7706]
[1740731626447,7.6411,130.87,130.77,20.0]
[1740731626645,26.744,130.87,130.77,20.0]
[1740731627154,7.6411,130.87,130.77,20.0]
[1740731627936,7.6411,130.87,130.78,0.14216157]
[1740731628138,7.6382,130.92,130.82,7.644]
[1740731628719,7.6382,130.92,130.81,27.6445]
[1740731628924,7.6382,130.92,130.81,46.7561]
[1740731629122,18.64964886,130.91,130.8,3.89607239]
[1740731629345,0.14216157,130.9,130.8,3.89607239]
[1740731629627,0.14216157,130.9,130.75,19.1191]
[1740731630348,18.79181043,130.88,130.75,19.1191]
[1740731630553,26.74,130.89,130.78,3.8718851]
[1740731630762,26.74,130.89,130.79,20.0]
[1740731631058,7.64,130.89,130.79,20.0]
[1740731631242,7.6388,130.91,130.81,20.0]
[1740731631939,7.6383,130.92,130.82,20.0]
[1740731632128,7.6353,130.97,130.87,20.0]
[1740731632328,0.063,131.0,130.89,20.0]
[1740731632535,7.697,131.0,130.89,20.0]
[1740731632738,7.697,131.0,130.92,3.92939131]
[1740731632957,0.063,131.0,130.92,3.92939131]
[1740731633256,7.6965,131.0,130.92,3.92939131]
[1740731633441,18.64964886,130.99,130.92,3.92939131]
[1740731633620,18.64964886,130.99,130.84,37.40641922]
[1740731633820,0.14216157,130.98,130.88,3.90506359]
[1740731634233,0.14216157,130.98,130.84,7.6429]
[1740731634234,18.64964886,130.95,130.86,3.81338282]
[1740731634443,101.44964886,130.95,130.86,3.81338282]
[1740731634757,101.44964886,130.95,130.83,7.6435]
[1740731635657,20.0,130.9,130.77,5.55365409]
[1740731635857,0.14216157,130.89,130.75,7.6481]
[1740731636030,18.79181043,130.89,130.75,26.7685]
[1740731636230,7.6405,130.88,130.75,26.7685]
[1740731636439,7.64,130.89,130.79,23.8333301]
[1740731636944,26.7344,130.92,130.79,23.8333301]
[1740731637151,18.79181043,130.91,130.79,3.8333301]
[1740731637650,18.64964886,130.87,130.75,7.6481]
[1740731638239,82.8,130.9,130.78,31.40972488]
[1740731638439,7.6376,130.93,130.81,20.0]
[1740731639029,7.6307,131.05,130.94,23.88818141]
[1740731639230,0.063,131.06,130.95,20.0]
[1740731639441,0.063,131.06,130.98,3.79912444]
[1740731640233,0.063,131.06,130.99,7.6341]
[1740731640752,0.063,131.06,130.98,7.6346]
[1740731641049,0.063,131.06,130.98,26.7214]
[1740731641461,0.063,131.06,130.98,7.6346]
[1740731641748,0.063,131.06,131.01,20.0]
[1740731641938,0.063,131.06,130.94,7.6366]
[1740731642143,0.14216157,131.05,130.9,7.6394]
[1740731642331,0.14216157,131.05,130.85,7.6423]
[1740731642332,28.98221043,131.0,130.85,7.6423]
[1740731642540,28.98221043,131.0,130.85,13.02778116]
[1740731642847,18.79181043,130.96,130.85,7.6423]
[1740731643044,0.14216157,130.99,130.85,26.7481]
[1740731643243,10.1904,131.0,130.85,26.7481]
[1740731643550,10.1904,131.0,130.88,20.0]
[1740731643933,18.64964886,131.03,130.91,20.0]
[1740731644241,90.4312,131.04,130.9,0.14216157]
[1740731644449,82.8,131.04,130.91,7.6388]
[1740731644659,10.9241,131.05,130.92,0.14216157]
[1740731644832,10.9241,131.05,130.91,26.7358]
[1740731645036,29.57374886,131.05,130.93,3.82432617]
[1740731645232,18.64964886,131.04,130.93,3.82432617]
[1740731645426,10.9241,131.05,130.93,3.82432617]
[1740731645637,10.9241,131.05,130.94,20.0]
[1740731645843,10.9241,131.05,130.94,21.60307198]
[1740731646031,0.063,131.06,130.94,21.60307198]
[1740731646238,0.063,131.06,130.97,20.0]
[1740731646552,0.063,131.06,130.98,7.6347]
[1740731647247,0.063,131.06,130.98,26.7215]
[1740731647449,0.063,131.06,130.99,0.14216157]
[1740731647635,0.063,131.06,130.99,211.34320113]
[1740731647836,0.063,131.06,130.99,209.7410097]
[1740731648549,0.063,131.06,131.02,3.91693119]
[1740731648846,0.063,131.06,131.03,7.6318]
[1740731649053,0.063,131.06,131.02,11.54923119]
[1740731649356,0.0001,131.06,131.05,20.14216157]
[1740731649536,0.0001,131.06,131.05,20.0]
[1740731650855,0.0001,131.06,131.05,27.6306]
[1740731651046,0.0001,131.06,131.05,7.6306]
[1740731651356,0.0001,131.06,131.03,7.6318]
[1740731651849,0.0001,131.06,131.01,127.99884813]
[1740731652052,0.0001,131.06,130.99,0.03]
[1740731654058,0.0001,131.06,130.99,3.81229961]
[1740731654258,0.0001,131.06,131.0,1.7444821]
[1740731654463,0.0001,131.06,130.99,85.41229961]
[1740731654831,0.0001,131.06,131.03,20.0]
[1740731655159,0.0001,131.06,131.04,20.0]
[1740731655459,0.0001,131.06,131.05,20.0]
[1740731655656,0.0001,131.06,131.04,3.7753997]
[1740731655959,0.0001,131.06,131.01,85.43711555]
[1740731656173,0.0001,131.06,131.0,154.71624813]
[1740731656471,0.0001,131.06,131.0,135.63234813]
[1740731656751,0.0001,131.06,131.0,7.6335]
[1740731657255,0.0001,131.06,131.04,20.0]
[1740731657458,0.0001,131.06,131.04,229.59884813]
[1740731657841,0.0001,131.06,131.04,229.39884813]
[1740731658037,0.0001,131.06,131.05,23.08]
[1740731658249,0.0001,131.06,131.04,229.39884813]
[1740731658250,0.0001,131.06,131.04,209.59884813]
[1740731658439,0.0001,131.06,131.0,236.31624813]
[1740731658641,0.0001,131.06,131.0,108.3174]
[1740731658840,0.0001,131.06,131.0,109.91953805]
[1740731659263,0.0001,131.06,131.0,7.6335]
[1740731659642,0.0001,131.06,131.0,26.7174]
[1740731659844,0.0001,131.06,131.01,1.60242073]
[1740731660172,0.0001,131.06,131.01,81.6]
[1740731660857,0.0001,131.06,131.02,7.6324]
[1740731661563,0.0001,131.06,131.01,89.2328]
[1740731661776,0.0001,131.06,131.02,0.14216157]
[1740731661957,0.0001,131.06,131.04,20.0]
[1740731662847,0.0001,131.06,131.05,7.6306]
[1740731664263,0.0001,131.06,131.03,7.6318]
[1740731664453,3.504,131.06,131.0,0.03]
[1740731664953,7.6306,131.05,131.0,0.03]
[1740731665155,3.504,131.06,131.0,0.03]
[1740731666073,11.1342,131.06,131.0,0.03]
[1740731666279,30.2094,131.06,131.0,0.03]
[1740731666470,11.1342,131.06,131.0,0.03]
[1740731667158,18.64964886,131.05,131.0,0.03]
[1740731668087,18.79181043,131.01,130.99,0.03]
[1740731668379,7.479,131.0,130.86,81.63]
[1740731668679,0.14216157,130.99,130.86,81.63]
[1740731668975,26.7215,130.98,130.87,7.6411]
[1740731669462,18.64964886,130.97,130.87,7.6411]
[1740731669862,3.6986,130.96,130.86,0.03]
[1740731670058,18.64964886,130.95,130.86,0.03]
[1740731670462,20.0,130.92,130.86,0.03]
[1740731670647,7.0778,130.91,130.86,0.03]
[1740731670963,7.6411,130.87,130.76,7.6475]
[1740731671268,3.5595,130.86,130.76,7.6475]
[1740731672561,18.64964886,130.85,130.72,7.6499]
[1740731672947,7.4137,130.81,130.71,7.6505]
[1740731673869,7.4137,130.81,130.72,0.14216157]
[1740731674164,26.7502,130.84,130.72,20.39755569]
[1740731674165,7.6429,130.84,130.72,20.39755569]
[1740731674569,7.6429,130.84,130.72,18.79181043]
[1740731674975,7.6423,130.85,130.73,7.6493]
[1740731675163,7.6423,130.85,130.74,0.14216157]
[1740731676190,7.6423,130.85,130.75,7.6481]
[1740731676390,26.7481,130.85,130.71,312.0]
[1740731676698,101.59181043,130.84,130.7,81.6]
[1740731676861,20.0,130.8,130.69,0.03]
[1740731677058,20.0,130.79,130.69,7.6816]
[1740731677893,82.8,130.82,130.69,28.41705945]
[1740731678123,20.0,130.79,130.69,9.28785945]
[1740731678272,7.647,130.77,130.69,0.03]
[1740731678464,18.79181043,130.75,130.69,0.03]
[1740731679087,18.79181043,130.73,130.68,0.03]
[1740731680171,0.14216157,130.69,130.59,7.6575]
[1740731680683,7.6511,130.7,130.59,7.6575]
[1740731681569,90.4511,130.7,130.59,7.6575]
[1740731681770,101.59181043,130.69,130.58,7.688]
[1740731681980,82.8,130.69,130.58,7.688]
[1740731682180,10.7023,130.67,130.58,0.03]
[1740731682371,22.50890395,130.65,130.58,0.03]
[1740731682575,0.14216157,130.63,130.58,0.03]
[1740731682775,82.8,130.64,130.58,0.03]
[1740731683198,18.64964886,130.63,130.58,0.03]
[1740731683493,10.7023,130.67,130.58,0.03]
[1740731684193,10.7023,130.67,130.58,20.03]
[1740731684372,82.8,130.71,130.59,0.14216157]
[1740731684373,86.70085914,130.71,130.59,0.14216157]
[1740731684568,18.79181043,130.7,130.58,20.03]
[1740731684773,86.70085914,130.71,130.58,20.03]
[1740731685095,14.68378828,130.72,130.59,20.14216157]
[1740731685296,18.79181043,130.71,130.59,20.0]
[1740731685594,82.8,130.7,130.59,7.6575]
[1740731685968,18.79181043,130.69,130.59,7.6575]
[1740731686172,82.8,130.7,130.59,7.6575]
[1740731686370,10.8537,130.72,130.6,20.14216157]
[1740731686572,10.3412,130.77,130.65,0.14216157]
[1740731686807,10.3412,130.77,130.67,0.14216157]
[1740731687086,97.51643898,130.83,130.7,20.14216157]
[1740731687289,93.6413,130.83,130.71,7.6505]
[1740731687481,18.79181043,130.82,130.71,7.6505]
[1740731687685,93.6413,130.83,130.71,7.6505]
[1740731687884,20.0,130.8,130.68,7.6522]
[1740731688808,18.79181043,130.79,130.65,9.2605473]
[1740731689009,82.8,130.79,130.65,28.3955473]
[1740731689295,82.8,130.79,130.68,20.0]